Cogmind - Beta 9.6 @@@ ROGUE MODE // 2020.08.29 @ 10:20:12 Player: Someone64 Result: Destroyed by G-47 Trooper with Particle Gun Performance ------------- Evolutions (3) 1500 Regions Visited (5) 1000 Robots Destroyed (23) 115 Value Destroyed (1148) 1148 Prototype IDs (1) 20 Alien Tech Used (0) 0 Bonus (352) 352 TOTAL SCORE: 4135 Bonus ------- High Alert Combat Kills 358 Follower Combat Kills 263 Friendly Fire -269 Cogmind --------- Core Integrity 0/700 Matter 230/300 Energy 100/100 System Corruption 1% Temperature Cool (9) Movement Walking (130) Location -7/Factory Parts ------- > --- POWER (3) -------- Backup Power III Backup Power III > --- PROPULSION (4) --- Titanium Leg Titanium Leg Titanium Leg > --- UTILITY (4) ------ Energy Filter Energy Filter Energy Filter Energy Filter > --- WEAPON (2) ------- Backup Laser III Backup Laser III > --- INVENTORY (4) ---- (None) Peak State ------------ > --- POWER ------------ Backup Power III Backup Power III > --- PROPULSION ------- Titanium Leg Titanium Leg Titanium Leg > --- UTILITY ---------- Energy Filter Energy Filter Energy Filter Energy Filter > --- WEAPON ----------- Backup Laser III Backup Laser III > --- INVENTORY -------- (None) [Rating: 37] Favorites ----------- Power Improved Ion Engine Engine Improved Ion Engine Power Core Light Nuclear Core Propulsion Aluminum Leg Treads Light Treads Leg Aluminum Leg Wheel Wheel Utility Small Storage Unit Device Heat Sink Storage Small Storage Unit Processor Improved Targeting Computer Weapon Ion Burst Cannon Energy Gun Particle Gun Energy Cannon Ion Burst Cannon Ballistic Gun Heavy Assault Rifle Ballistic Cannon Gauss Cannon Launcher Grenade Launcher Special Weapon Remote Datajack Slashing Weapon Greatsword Build | -11 -10 -9 -9 -9 -7 ------- Run | Scr Mat Mat Sto Rec Fac Slots Evolved 6 | . . 2 . . 4 Power 2 | . . 1 . . 1 Propulsion 2 | . . 1 . . 1 Utility 2 | . . . . . 2 Weapon . | . . . . . . Parts Attached 60 | 9 1 7 18 . 25 Power 14 | 2 . 2 5 . 5 Engine 10 | 2 . 1 5 . 2 Core 4 | . . 1 . . 3 Reactor . | . . . . . . Propulsion 17 | 3 . 1 5 . 8 Treads 2 | . . . 2 . . Leg 11 | . . . 3 . 8 Wheel 4 | 3 . 1 . . . Hover . | . . . . . . Flight . | . . . . . . Utility 10 | 2 . 1 1 . 6 Device 7 | 1 . 1 1 . 4 Storage 2 | 1 . . . . 1 Processor 1 | . . . . . 1 Hackware . | . . . . . . Protection . | . . . . . . Artifact . | . . . . . . Weapon 19 | 2 1 3 7 . 6 Energy Gun 3 | 1 1 . . . 1 Energy Cannon 7 | . . 3 3 . 1 Ballistic Gun 4 | 1 . . 2 . 1 Ballistic Cannon 1 | . . . . . 1 Launcher 2 | . . . 2 . . Special Weapon 1 | . . . . . 1 Impact Weapon . | . . . . . . Slashing Weapon 1 | . . . . . 1 Piercing Weapon . | . . . . . . Special Melee Weapon . | . . . . . . Unidentified Prototypes 1 | . . . 1 . . Parts Lost 26 | . . . 2 . 24 Power 6 | . . . . . 6 Propulsion 9 | . . . 1 . 8 Utility 5 | . . . 1 . 4 Weapon 6 | . . . . . 6 Highest Loss Streak 9 | . . . 1 . 9 Average Slot Usage (%) 83 | . 100 96 89 100 62 Engine 16 | . 14 9 20 22 10 Core 1 | . . 9 1 . 1 Leg 15 | . . . 3 33 21 Wheel 9 | . 28 31 19 . . Device 9 | . 14 11 10 11 5 Storage 9 | . 14 11 11 11 5 Processor 2 | . . . . . 5 Energy Gun 2 | . 14 8 . . 1 Energy Cannon 10 | . . 13 13 22 3 Ballistic Gun 3 | . 14 . 7 . 1 Naked Turns 39 | . . . . . 39 Heaviest Build 38 | 14 15 26 31 31 38 Greatest Support 51 | 26 20 36 40 30 51 Greatest Overweight (x) 9 | 2 . . 7 1 9 Average Overweight (x) . | . . . . 1 . Largest Inventory Capacity 6 | 6 6 6 6 6 6 Average Capacity 5 | 5 6 6 6 6 4 Most Carried 6 | 6 6 6 6 6 6 Average Carried 4 | 4 5 5 6 6 2 Final Capacity 6 | 6 6 6 6 6 4 Final Carried 6 | 6 6 6 6 6 . Class Distribution -------------------- 52% | Scavenger-Mutant 36% | Mutant 10% | Commander-Mutant Dominant Class ---------------- Mutant | -10/Materials Scavenger-Mutant | -9/Materials Commander-Mutant | -9/Storage Scavenger-Mutant | -9/Recycling Scavenger-Mutant | -7/Factory Resources | -11 -10 -9 -9 -9 -7 ----------- Run | Scr Mat Mat Sto Rec Fac Matter Collected 804 | 213 75 . 305 . 211 Remotely . | . . . . . . Salvage Created 927 | 25 75 39 330 . 458 Parts 46 | 3 5 3 19 . 16 Haulers Intercepted 1 | . . 1 . . . Recyclers Shooed 1 | 1 . . . . . Parts Field Recycled . | . . . . . . Retrieved Matter . | . . . . . . Parts Self-Destructed . | . . . . . . Prevented . | . . . . . . Kills | -11 -10 -9 -9 -9 -7 ------- Run | Scr Mat Mat Sto Rec Fac Combat Hostiles Destroyed 19 | . 2 . 6 . 11 Melee 1 | . . . . . 1 Guns 3 | . 2 . 1 . . Cannons 13 | . . . 5 . 8 AOE 2 | . . . . . 2 Classes Destroyed 8 | 1 1 1 3 . 2 Tunneler 1 | 1 . . . . . Hauler 1 | . . 1 . . . Watcher 1 | . . . 1 . . Swarmer 1 | . . . 1 . . Grunt 14 | . 2 . 3 . 9 Brawler 1 | . . . . . 1 Sentry 3 | . . . 3 . . Hunter 1 | . . . . . 1 Best Kill Streak 5 | 1 2 1 3 . 5 Combat Bots Only 5 | . 2 . 3 . 5 Max Kills in Single Turn 1 | 1 1 1 1 . 1 Gunslinging . | . . . . . . Exploded 1 | . . . . . 1 Melee 1 | . . . . . 1 Uniques/NPCs Destroyed . | . . . . . . Combat | -11 -10 -9 -9 -9 -7 -------- Run | Scr Mat Mat Sto Rec Fac Damage Taken 3433 | 1 78 179 522 . 2653 Core 801 | . 11 5 77 . 708 Absorbed by Shields 135 | . . 35 85 . 15 Core Remaining (%) 91 | 100 95 . . 79 . Volleys Fired 71 | 3 6 5 22 4 31 Largest 2 | 2 2 2 2 2 2 Hottest 200 | 70 70 125 112 200 156 Shots Fired 108 | 6 12 10 34 8 38 Gun 42 | 6 12 5 11 . 8 Cannon 64 | . . 5 22 8 29 Launcher 1 | . . . 1 . . Special 1 | . . . . . 1 Kinetic 37 | 3 6 . 11 . 17 Thermal 47 | 3 6 10 . 8 20 Explosive 1 | . . . 1 . . Electromagnetic 22 | . . . 22 . . Robot Hit Streak 11 | 3 6 6 11 1 10 Robot Miss Streak 16 | 1 1 1 3 16 3 Penetration Max . | . . . . . . Secondary Targets . | . . . . . . Shots Hit Robots 84 | 4 9 8 22 1 40 Core Hits 46 | 1 5 2 12 . 26 Critical Hits 3 | . . . 1 . 2 Critical Kills 1 | . . . . . 1 Critical Parts Destroyed 2 | . . . 1 . 1 Melee Attacks 16 | . . . . . 16 Impact . | . . . . . . Slashing 16 | . . . . . 16 Piercing . | . . . . . . Sneak Attacks . | . . . . . . Combat Hostiles . | . . . . . . Follow-up Attacks . | . . . . . . Damage Inflicted 2657 | 52 108 152 424 62 1859 Guns 406 | 49 108 64 115 . 70 Cannons 1219 | . . 88 294 62 775 Explosions 324 | . . . . . 324 Melee 674 | . . . . . 674 Ramming 34 | 3 . . 15 . 16 Kinetic 482 | 24 46 . 115 . 297 Thermal 1004 | 25 62 152 . 62 703 Explosive 169 | . . . . . 169 Electromagnetic 294 | . . . 294 . . Impact . | . . . . . . Slashing 674 | . . . . . 674 Piercing . | . . . . . . Highest Corruption 2 | . . . 2 2 1 Average Corruption 1 | . . . 2 2 1 Corruption Purged . | . . . . . . Effects 4 | . . . 2 2 . Heat Flow Errors 1 | . . . . 1 . Energy Discharges 3 | . . . 2 1 . Overload Shots . | . . . . . . Overflow Damage 186 | . . . . . 186 Projectiles 3 | . . . . . 3 Explosions 181 | . . . . . 181 Melee 2 | . . . . . 2 Knockbacks 4 | . . . . . 4 Impact . | . . . . . . Kinetic 3 | . . . . . 3 Secondary 1 | . . . . . 1 Self-Inflicted Damage 503 | 1 . . 16 . 486 Shots 7 | . . . 1 . 6 Rammed 11 | 1 . . 3 . 7 Targets Rammed 11 | 1 . . 3 . 7 Kicked . | . . . . . . Crushed . | . . . . . . Highest Temperature 417 | 18 99 417 390 392 402 Average Temperature 156 | 9 53 227 192 164 129 Received Heat Transfer 1357 | . 45 39 148 . 1125 Effects 10 | . . 3 2 . 5 Shutdowns 5 | . . . 1 . 4 Interference 3 | . . 3 . . . Matter Decay 1 | . . . . . 1 Damage (minor) 1 | . . . 1 . . Siege Activations . | . . . . . . Robots Corrupted . | . . . . . . Combat Hostiles . | . . . . . . Parts Fried 1 | . . . 1 . . Impact Corruptions . | . . . . . . Robots Melted . | . . . . . . Combat Hostiles . | . . . . . . Parts Melted 2 | . . . . . 2 Heat Transferred 1551 | 74 185 333 . 75 884 Parts Sabotaged . | . . . . . . Parts Stolen . | . . . . . . Parts Stripped . | . . . . . . Power Chain Reactions . | . . . . . . Missiles Intercepted . | . . . . . . Alert | -11 -10 -9 -9 -9 -7 ------- Run | Scr Mat Mat Sto Rec Fac Peak Influence 1441 | 5 76 68 431 263 1441 Average Influence 528 | 1 56 54 215 201 1196 Maximum Alert Level 4 | . . . 2 1 4 Low Security (%) 40 | 100 100 100 50 45 . Level 1 19 | . . . 30 54 . Level 2 5 | . . . 18 . . Level 3 8 | . . . . . 23 Level 4 26 | . . . . . 76 Level 5 . | . . . . . . High Security . | . . . . . . Max Security . | . . . . . . Squads Dispatched 4 | . . . . . 4 Investigation 1 | . . . . . 1 Extermination . | . . . . . . Reinforcement 2 | . . . . . 2 Assault 1 | . . . . . 1 Garrison . | . . . . . . Intercept . | . . . . . . Construction Impeded . | . . . . . . Haulers Reinforced . | . . . . . . Stealth | -11 -10 -9 -9 -9 -7 --------- Run | Scr Mat Mat Sto Rec Fac Distress Signals 2 | . . 1 . . 1 Communications Jammed . | . . . . . . Distress Signals . | . . . . . . Times Spotted 68 | . 3 5 20 12 28 Peak Tracking Total 10 | . 2 5 10 4 7 Tactical Retreats 3 | . . . . . 3 Traps | -11 -10 -9 -9 -9 -7 ------- Run | Scr Mat Mat Sto Rec Fac Traps Triggered 4 | . . . 3 . 1 Indirectly . | . . . . . . Trap Hack Attempts . | . . . . . . Triggered . | . . . . . . Disarmed . | . . . . . . Reprogrammed . | . . . . . . Reused . | . . . . . . Traps Extracted . | . . . . . . Installed . | . . . . . . Triggered . | . . . . . . Machines | -11 -10 -9 -9 -9 -7 ---------- Run | Scr Mat Mat Sto Rec Fac Machines Disabled 21 | . . . 1 1 19 Max in Single Turn 16 | . . . 1 1 16 Garrison Access 1 | . . . . . 1 Machines Sabotaged . | . . . . . . Garrisons Compromised . | . . . . . . Overloaded Fab Kills . | . . . . . . Fab Network Shutdowns . | . . . . . . Hacking | -11 -10 -9 -9 -9 -7 --------- Run | Scr Mat Mat Sto Rec Fac Machines Accessed 14 | . 2 . 2 5 5 Terminals 11 | . 2 . 2 4 3 Fabricators 1 | . . . . . 1 Repair Stations 1 | . . . . . 1 Recycling Units 1 | . . . . 1 . Scanalyzers . | . . . . . . Garrison Access . | . . . . . . Total Hacks 27 | . 4 . 3 11 9 Successful 13 | . 3 . 1 5 4 Failed 14 | . 1 . 2 6 5 Catastrophic 1 | . . . 1 . . Database Lockouts . | . . . . . . Manual 14 | . 3 . 4 3 4 Terminals 21 | . 4 . 3 10 4 Fabricators 3 | . . . . . 3 Repair Stations 2 | . . . . . 2 Recycling Units 1 | . . . . 1 . Scanalyzers . | . . . . . . Garrison Access . | . . . . . . Terminal Hacks 7 | . 2 . 1 3 1 Robot Schematic 1 | . . . . 1 . Level Access Points 1 | . . . . . 1 Branch Access Points 2 | . 1 . 1 . . Emergency Access Points 1 | . . . . 1 . Unreport Threat 1 | . . . . 1 . Locate Traps 1 | . 1 . . . . Fabricator Hacks 2 | . . . . . 2 Load Schematic 1 | . . . . . 1 Build 1 | . . . . . 1 Repair Station Hacks 1 | . . . . . 1 Refit 1 | . . . . . 1 Recycling Unit Hacks . | . . . . . . Scanalyzer . | . . . . . . Garrison Access Hacks . | . . . . . . Unauthorized Hacks 3 | . 1 . . 2 . Terminals 3 | . 1 . . 2 . Track 2 | . 1 . . 1 . Operators 1 | . . . . 1 . Fabricators . | . . . . . . Repair Stations . | . . . . . . Recycling Units . | . . . . . . Scanalyzers . | . . . . . . Garrison Access . | . . . . . . Data Cores Recovered . | . . . . . . Used . | . . . . . . Hacking Detections 10 | . 1 . 1 4 4 Full Trace Events 2 | . . . . 1 1 Feedback Events . | . . . . . . Feedback Blocked . | . . . . . . Robot Schematics Acquired 1 | . . . . 1 . Robots Built 1 | . . . . . 1 Matter 153 | . . . . . 153 Time 81 | . . . . . 81 Total Robot Build Rating 1 | . . . . . 1 Part Schematics Acquired . | . . . . . . Parts Built . | . . . . . . Matter . | . . . . . . Time . | . . . . . . Total Part Build Rating . | . . . . . . Parts Repaired . | . . . . . . Time . | . . . . . . Parts Recycled . | . . . . . . Recycled Matter . | . . . . . . Retrieved Matter . | . . . . . . Retrieved Components . | . . . . . . Parts Scanalyzed . | . . . . . . Part Schematics Acquired . | . . . . . . Parts Damaged . | . . . . . . Bothacking | -11 -10 -9 -9 -9 -7 ------------ Run | Scr Mat Mat Sto Rec Fac Used RIF Installer . | . . . . . . Robots Hacked . | . . . . . . Non-combat . | . . . . . . Combat . | . . . . . . Robot Hacks Applied . | . . . . . . Relay Couplers Released 3 | . . . . . 3 Machine Destruction 3 | . . . . . 3 Robots Rewired . | . . . . . . Allies Hacked . | . . . . . . Hacks Repelled . | . . . . . . Allies | -11 -10 -9 -9 -9 -7 -------- Run | Scr Mat Mat Sto Rec Fac Total Allies 11 | . . . 10 . 1 Largest Group 10 | . . . 10 5 2 Highest-Rated Group 88 | . . . 88 39 16 Highest-Rated Ally 16 | . . . 16 8 8 Total Orders . | . . . . . . Ally Attacks 142 | . . . 63 73 6 Total Damage 913 | . . . 588 268 57 Kills 21 | . . . 12 9 . Allies Corrupted . | . . . . . . Allies Melted . | . . . . . . Intel | -11 -10 -9 -9 -9 -7 ------- Run | Scr Mat Mat Sto Rec Fac Robot Analysis Total . | . . . . . . Derelict Logs Recovered . | . . . . . . Drone Launches . | . . . . . . Drone Recoveries . | . . . . . . Exploration | -11 -10 -9 -9 -9 -7 ------------- Run | Scr Mat Mat Sto Rec Fac Turns Passed 2225 | 86 215 92 601 446 785 Spaces Moved 1370 | 64 152 57 426 207 464 Core 153 | 8 . . 5 . 140 Treads 15 | . . . 15 . . Legs 563 | . . . 32 207 324 Wheels 639 | 56 152 57 374 . . Hover . | . . . . . . Flight . | . . . . . . Fastest Speed 50 | 50 80 80 86 150 50 Average Speed 112 | 86 80 85 98 150 125 Slowest Speed 500 | 150 80 86 400 150 500 Overloaded Moves . | . . . . . . Propulsion Burnouts . | . . . . . . Robots Hopped . | . . . . . . Cave-ins Triggered . | . . . . . . Exploration Rate (%) 26 | 3 31 11 49 46 18 Regions Visited 5 Branch Regions 2 Pre-discovered Areas . | . . . . . . Known Exits Taken 1 | . . . 1 . . Unknown Exits Taken 4 | 1 1 1 . 1 . Scrap Searched . | . . . . . . Spaces Dug . | . . . . . . Terrain Destroyed 132 | . . . 3 . 129 Melee . | . . . . . . Projectile . | . . . . . . AOE 132 | . . . 3 . 129 Actions | -11 -10 -9 -9 -9 -7 --------- Run | Scr Mat Mat Sto Rec Fac Total 1894 | 85 234 91 571 331 582 Wait 301 | . 69 13 82 118 19 Move 1365 | 63 151 56 425 206 464 Hop . | . . . . . . Pick Up 17 | 6 3 3 2 . 3 Fast Attach 48 | 9 1 5 15 . 18 Attach 9 | . . 2 . . 7 Detach 3 | 1 . 1 . . 1 Swap 3 | . . . 3 . . Drop 31 | 2 4 6 16 . 3 Fire 71 | 3 6 5 22 4 31 Melee 16 | . . . . . 16 Ram 11 | 1 . . 3 . 7 Kick . | . . . . . . Crush . | . . . . . . Escape Stasis 13 | . . . . . 13 Rewire 6 | . . . 3 3 . Trap . | . . . . . . Miscellaneous . | . . . . . . Route ------- -11/Scrapyard -10/Materials (discovered 2 exits: [*Mat] / Min) -9/Materials -9/Storage -9/Recycling -7/Factory (discovered 4 exits: Fac x4) History --------- Turn | Location | Event 12 | -11/Scrapyard | Discovered new exit (range 16) 87 | -11/Scrapyard | Entered Materials 172 | -10/Materials | Identified exit to Mines 291 | -10/Materials | Discovered new exit (range 15) 302 | -10/Materials | Entered another Materials area 302 | -9/Materials | Evolved 2 slots: Power x1, Propulsion x1 303 | -9/Materials | Build established: Mutant 353 | -9/Materials | Discovered new exit (range 8) 394 | -9/Materials | Entered Storage 698 | -9/Storage | Assisted by bots powering up and referring to "LRC-V3" 698 | -9/Storage | Identified exit to Recycling 986 | -9/Storage | Used back door to open Recycling access 995 | -9/Storage | Entered Recycling 995 | -9/Recycling | Accompanied by 5 allies 1016 | -9/Recycling | Spotter reported a threat 1024 | -9/Recycling | Spotter reported a threat 1049 | -9/Recycling | Spotter reported a threat 1063 | -9/Recycling | Spotter reported a threat 1075 | -9/Recycling | Spotter reported a threat 1103 | -9/Recycling | Spotter reported a threat 1104 | -9/Recycling | Spotter reported a threat 1108 | -9/Recycling | Spotter reported a threat 1128 | -9/Recycling | Spotter reported a threat 1149 | -9/Recycling | Spotter reported a threat 1157 | -9/Recycling | Spotter reported a threat 1157 | -9/Recycling | Spotter reported a threat 1161 | -9/Recycling | Spotter reported a threat 1181 | -9/Recycling | Spotter reported a threat 1181 | -9/Recycling | Spotter reported a threat 1181 | -9/Recycling | Spotter reported a threat 1202 | -9/Recycling | Spotter reported a threat 1223 | -9/Recycling | Build established: Scavenger-Mutant 1243 | -9/Recycling | Spotter reported a threat 1365 | -9/Recycling | Spotter reported a threat 1418 | -9/Recycling | Discovered new exit (range 5) 1422 | -9/Recycling | Spotter reported a threat 1434 | -9/Recycling | Spotter reported a threat 1441 | -9/Recycling | Entered Factory 1441 | -7/Factory | Accompanied by 2 allies 1441 | -7/Factory | Evolved 4 slots: Power x1, Propulsion x1, Utility x2 1662 | -7/Factory | Lost 4 parts (2n1u1w) 1822 | -7/Factory | Lost 3 parts (2p1w) 1983 | -7/Factory | Core integrity fell below 50% 2015 | -7/Factory | Lost 9 parts (3p3n2u1w) 2058 | -7/Factory | Lost 4 parts (3n1w) 2094 | -7/Factory | Core integrity fell below 20% 2123 | -7/Factory | Identified exit to Factory 2130 | -7/Factory | Lost 4 parts (1p1u2w) 2164 | -7/Factory | Fabricated R-06 Scavenger? 2226 | -7/Factory | Destroyed by G-47 Trooper with Particle Gun Last Messages --------------- >>Access(Main) Found 4 level access points to Factory: (21,21) (182,182) (183,120) (195,65) Map updated. 02138_ Acquired Titanium Leg. 02145_ K-01 Serf cleans the Subcomponent Replicator. 02145_ Connecting with Terminal... 02148_ K-01 Serf cleans the Subcomponent Replicator. [Achievement: My Command Is Your Wish] 02164_ >> FABRICATOR: Completed R-06 Scavenger? 02195_ Connecting with Repair Station... >>Refit Scanning configuration... Attaching: Backup Power III x2 Backup Laser III x2 02204_ Acquired Energy Filter. Map ----- +----------------------------------------------------+ | ?????????????????????????????????????????????????? | | ?????????????????????????????????????????????????? | | ?????????????????????????????????????????????????? | | ?????????????????????????????????????????????????? | | ?????????????????????????????????????????????????? | | ?????????????????????????????????????????????????? | | ?????????????????????????????????????????????????? | | ?????????????????????????????????????????????????? | | ?????????????????????????????????????????????????? | | ?????????????????????????????????????????????????? | | ?????????????????????????????????????????????????? | | ?????????????????????????????????????????????????? | | ?????????????????????????????????????????????????? | | ????????????????????? ???????????????????????????? | | ????????????????? ^ ??????????????????????????? | | ??????????????# #?????????????????????????? | | ?????????????## #?????????????????????????? | | ???????????? = #?????????????????????????? | | ???????????? #?????????????????????????? | | ??????????? #?????????????????????????? | | ???????????? #?????????????????????????? | | ????????? g /!=#?????????????????????????? | | ???????? mg /!=#??+#?????????????????????? | | ??????? " " " /! ### ##????????????????????? | | ???????? " " " #????????????????????? | | ???????? " " " w @ #????????????????????? | | ?##?????# " " " #????????????????????? | | ? #?????# " " " #????????????????????? | | " #?????# " " " #????????????????????? | | " #?????# " " " #????????????????????? | | " #?????# " " " #?????